Workbook

Sheet Daten
C3: Lernmodul M 04:
C4: Betriebswirtschaftliche Kennzahlen
C6: Thema: Bilanzanalyse
C8: Aufgabe und Anliegen einer Bilanzanalyse ist es, Aussagen vor allem zur
C10: - Vermögenslage,
C11: - Finanzlage,
C12: - Liquiditätslage und
C13: - Ertragslage
C15: eines Unternehmens zu machen.
C16: Damit sollen vor allem die Informationsbedürfnisse externer Adressaten (wie Anteils-
C17: eigner, Gläubiger, Finanzamt u.a.), aber auch interner Informationsempfänger
C18: (Unternehmensleitung, Arbeitnehmer) befriedigt werden-
C20: Fallbeispiel:
C22: Die Fa. PCX GmbH hat ihre Bilanz unter Berücksichtigung einer teilweisen Verwendung des
C23: Jahresgewinns (für eine Einstellung in die Gewinnrücklage) zur Analyse vorbereitet.
C25: Der Bilanzgewinn soll auf Beschluss der Gesellschafterversammlung kurzfristig in voller Höhe
C26: ausgeschüttet werden, er wird daher im Rahmen der Bilanzaufbereitung den kurzfristigen
C27: Verbindlichkeiten zugeordnet.
C28: Die Rückstellungen sind je zur Hälfte als kurzfristige bzw. als langfristige Rückstellungen
C29: zu behandeln.
C30: Die Daten für die Bilanzanalyse sind der nachfolgenden Tabelle zu entnehmen.
D33: AKTIVA | E33: Bilanz der PCX GmbH (Angaben in1.000 EUR) | I33: PASSIVA
D34: Position | E34: Berichtsjahr | F34: Vorjahr | G34: Position | H34: Berichtsjahr | I34: Vorjahr
E35: =YEAR(NOW())-1 -> 2021 | F35: =YEAR(NOW())-2 -> 2020 | H35: =YEAR(NOW())-1 -> 2021 | I35: =YEAR(NOW())-2 -> 2020
D36: Sachanlagen | E36: 6960 | F36: 6220 | G36: Gez. Kapital | H36: 6800 | I36: 6000
D37: Finanzanlagen | E37: 860 | F37: 800 | G37: Gewinnrücklagen | H37: 1400 | I37: 960
G38: Bilanzgewinn | H38: =E42-H36-H37-H39-H40-H41 -> 500 | I38: =F42-I36-I37-I39-I40-I41 -> 300
D39: Vorräte | E39: 4860 | F39: 6050 | G39: Rückstellungen | H39: 320 | I39: 240
D40: Forderungen | E40: 2300 | F40: 1350 | G40: Langfr. Verbindlichkeiten | H40: 5560 | I40: 4860
D41: Flüssige Mittel | E41: 1020 | F41: 580 | G41: Kurzfr. Verbindlichkeiten | H41: 1420 | I41: 2640
D42: Summe | E42: =SUM(E36:E41) -> 16000 | F42: =SUM(F36:F41) -> 15000 | H42: =SUM(H36:H41) -> 16000 | I42: =SUM(I36:I41) -> 15000
D44: Aufgaben:
D45: 1. Es sind die Bilanzdaten nach Gesichtspunkten einer Bilanzanalyse (Struktur-Bilanz) zu ordnen!
D47: 2. Es sind die typischen Kennzahlen zur Bilanzanalyse zu ermitteln und im Vergleich
D48: der beiden Perioden auszuwerten!

Sheet Strukturbilanz
C3: =Daten!C3 -> Lernmodul M 04:
C4: =Daten!C4 -> Betriebswirtschaftliche Kennzahlen
C6: =Daten!C6 -> Thema: Bilanzanalyse
D7: Strukturbilanz
C9: AKTIVA | D9: Berichtsjahr | E9: % | F9: Vorjahr | G9: % | H9: Veränderung
D10: =YEAR(NOW())-1 -> 2021 | F10: =YEAR(NOW())-2 -> 2020 | H10: absolut
C11: Sachanlagen
C12: Finanzanlagen
C13: Anlagevermögen
C14: Vorräte
C15: Forderungen
C16: Flüssige Mittel
C17: Umlaufvermögen
C18: Gesamtvermögen
C20: PASSIVA | D20: Berichtsjahr | E20: % | F20: Vorjahr | G20: % | H20: Veränderung
D21: =YEAR(NOW())-1 -> 2021 | F21: =YEAR(NOW())-2 -> 2020 | H21: absolut
C22: Gez. Kapital
C23: Gewinnrücklagen
C24: Eigenkapital
C25: Langfr. Rückstellungen
C26: Langfr. Verbindlichkeiten
C27: Langfr. Fremdkapital
C28: Kurzfr. Rückstellungen
C29: Kurzfr. Verbindlichkeiten
C30: Kurzfr. Fremdkapital
C31: Gesamtkapital
C33: Anmerkungen:

Sheet Strukturbilanz_L (hidden)
C3: =Daten!C3 -> Lernmodul M 04:
C4: =Daten!C4 -> Betriebswirtschaftliche Kennzahlen
C6: =Daten!C6 -> Thema: Bilanzanalyse
D7: Strukturbilanz: Musterlösung
C9: AKTIVA | D9: Berichtsjahr | E9: % | F9: Vorjahr | G9: % | H9: Veränderung
D10: =YEAR(NOW())-1 -> 2021 | F10: =YEAR(NOW())-2 -> 2020 | H10: absolut
C11: Sachanlagen | D11: =Daten!E36 -> 6960 | E11: =D11*100/D18 -> 43.5 | F11: =Daten!F36 -> 6220 | G11: =F11*100/F18 -> 41.46666667 | H11: =D11-F11 -> 740
C12: Finanzanlagen | D12: =Daten!E37 -> 860 | E12: =D12*100/D18 -> 5.375 | F12: =Daten!F37 -> 800 | G12: =F12*100/F18 -> 5.333333333 | H12: 60
C13: Anlagevermögen | D13: =D11+D12 -> 7820 | E13: =E11+E12 -> 48.875 | F13: =F11+F12 -> 7020 | G13: =G11+G12 -> 46.8 | H13: 800
C14: Vorräte | D14: =Daten!E39 -> 4860 | E14: =D14*100/D18 -> 30.375 | F14: =Daten!F39 -> 6050 | G14: =F14*100/F18 -> 40.33333333 | H14: -1190
C15: Forderungen | D15: =Daten!E40 -> 2300 | E15: =D15*100/D18 -> 14.375 | F15: =Daten!F40 -> 1350 | G15: =F15*100/F18 -> 9 | H15: 950
C16: Flüssige Mittel | D16: =Daten!E41 -> 1020 | E16: =D16*100/D18 -> 6.375 | F16: =Daten!F41 -> 580 | G16: =F16*100/F18 -> 3.866666667 | H16: 440
C17: Umlaufvermögen | D17: =D14+D15+D16 -> 8180 | E17: =E14+E15+E16 -> 51.125 | F17: =F14+F15+F16 -> 7980 | G17: =G14+G15+G16 -> 53.2 | H17: 200
C18: Gesamtvermögen | D18: =D13+D17 -> 16000 | E18: =E13+E17 -> 100 | F18: =F13+F17 -> 15000 | G18: =G13+G17 -> 100 | H18: =D18-F18 -> 1000
C20: PASSIVA | D20: Berichtsjahr | E20: % | F20: Vorjahr | G20: % | H20: Veränderung
D21: =YEAR(NOW())-1 -> 2021 | F21: =YEAR(NOW())-2 -> 2020 | H21: absolut
C22: Gez. Kapital | D22: =Daten!H36 -> 6800 | E22: =D22*100/$D$31 -> 42.5 | F22: =Daten!I36 -> 6000 | G22: =F22*100/$F$31 -> 40 | H22: =D22-F22 -> 800
C23: Gewinnrücklagen | D23: =Daten!H37 -> 1400 | E23: =D23*100/$D$31 -> 8.75 | F23: =Daten!I37 -> 960 | G23: =F23*100/$F$31 -> 6.4 | H23: 440
C24: Eigenkapital | D24: =D22+D23 -> 8200 | E24: 51.25 | F24: =F22+F23 -> 6960 | G24: 46.4 | H24: 1240
C25: Langfr. Rückstellungen | D25: =Daten!H39/2 -> 160 | E25: 1 | F25: =Daten!I39/2 -> 120 | G25: 0.8 | H25: 40
C26: Langfr. Verbindlichkeiten | D26: =Daten!H40 -> 5560 | E26: 34.75 | F26: =Daten!I40 -> 4860 | G26: 32.4 | H26: 700
C27: Langfr. Fremdkapital | D27: =D25+D26 -> 5720 | E27: 35.75 | F27: =F25+F26 -> 4980 | G27: 33.2 | H27: 740
C28: Kurzfr. Rückstellungen | D28: =Daten!H39/2 -> 160 | E28: 1 | F28: =Daten!I39/2 -> 120 | G28: 0.8 | H28: 40
C29: Kurzfr. Verbindlichkeiten | D29: =Daten!H41+Daten!H38 -> 1920 | E29: 12 | F29: =Daten!I41+Daten!I38 -> 2940 | G29: 19.6 | H29: -1020
C30: Kurzfr. Fremdkapital | D30: =D28+D29 -> 2080 | E30: 13 | F30: =F28+F29 -> 3060 | G30: 20.4 | H30: -980
C31: Gesamtkapital | D31: =D24+D27+D30 -> 16000 | E31: =E24+E27+E30 -> 100 | F31: =F24+F27+F30 -> 15000 | G31: =G24+G27+G30 -> 100 | H31: =D31-F31 -> 1000
C33: Erläuterungen:
C35: Die Struktur-Bilanz bildet die Grundlage für die Kennzahlen-Ermittlung.
C36: In der Struktur-Bilanz sollten die Abschlusswerte für 2 Stichtage sowie die Prozentsätze
C37: aufgeführt (Bilanzsumme = 100 %).
C38: Börsenfähige Wertpapiere und aktive Rechungsabgrenzungsposten sind den
C39: liquiden Mitteln zuzuordnen.
C40: Rückstellungen und Verbindlichkeiten sind zwei Gruppen zuzuorden:
C41: a) kurzfristg: Im Folgejahr auszahlungswirksam,
C42: b) langfristig: im Folgejahr nicht auszahlungswirksam.

Sheet Kennz1
C3: =Daten!C3 -> Lernmodul M 04:
C4: =Daten!C4 -> Betriebswirtschaftliche Kennzahlen
C6: =Daten!C6 -> Thema: Bilanzanalyse
D7: Analyse der Vermögensstruktur
C9: Angaben in [1000 EUR] | F9: Berichtsjahr | G9: Vorjahr
C12: Anlagenintensität [%]
C14: Angaben in [1000 EUR] | F14: Berichtsjahr | G14: Vorjahr
C17: Anteil des Umlaufvermögen [%]
C19: Angaben in [1000 EUR] | F19: Berichtsjahr | G19: Vorjahr
C20: (aus d. GuV-Rechnung bekannte) Gesamtleistung | F20: 8480 | G20: 5520
E21: Sachanlagen
C22: Ausnutzungsgrad d. Sachanlagen [EUR/1000 EUR]
D24: Analyse der Anlagendeckung
C26: Angaben in [1000 EUR] | F26: Berichtsjahr | G26: Vorjahr
C29: Deckungsgrad 1 [%]
C31: Angaben in [1000 EUR] | F31: Berichtsjahr | G31: Vorjahr
C35: Deckungsgrad 2 [%]
C38: Vermögensdeckungsrechnung | E38: Berichtsjahr | F38: Vorjahr | G38: Veränderung
C41: = Über- oder Unterdeckung
C42: durch Eigenkapital
C44: = langfr. Kapital zur Finanzierung
C45: des Umlaufvermögens
C47: = notwendiges kurzfrist. Fremdkapital zur
C48: Finanzierung des Umlaufvermögens

Sheet Kennz1_L (hidden)
C3: =Daten!C3 -> Lernmodul M 04:
C4: =Daten!C4 -> Betriebswirtschaftliche Kennzahlen
C6: =Daten!C6 -> Thema: Bilanzanalyse
D7: Analyse der Vermögensstruktur: Musterlösung
C9: Angaben in [1000 EUR] | F9: Berichtsjahr | G9: Vorjahr
E10: Anlagevermögen | F10: =Strukturbilanz_L!D13 -> 7820 | G10: =Strukturbilanz_L!F13 -> 7020
E11: Gesamtvermögen | F11: =Strukturbilanz_L!D18 -> 16000 | G11: =Strukturbilanz_L!F18 -> 15000
C12: Anlagenintensität [%] | F12: =F10*100/F11 -> 48.875 | G12: =G10*100/G11 -> 46.8
C14: Angaben in [1000 EUR] | F14: Berichtsjahr | G14: Vorjahr
E15: Umlaufvermögen | F15: =Strukturbilanz_L!D17 -> 8180 | G15: =Strukturbilanz_L!F17 -> 7980
E16: Gesamtvermögen | F16: =Strukturbilanz_L!D18 -> 16000 | G16: =Strukturbilanz_L!F18 -> 15000
C17: Anteil des Umlaufvermögen [%] | F17: =F15*100/F16 -> 51.125 | G17: =G15*100/G16 -> 53.2
C19: Angaben in [1000 EUR] | F19: Berichtsjahr | G19: Vorjahr
C20: (aus d. GuV-Rechnung bekannte) Gesamtleistung | F20: 8480 | G20: 5520
E21: Sachanlagen | F21: =Strukturbilanz_L!D11 -> 6960 | G21: =Strukturbilanz_L!F11 -> 6220
C22: Ausnutzungsgrad d. Sachanlagen [EUR/1000 EUR] | F22: =F20*1000/F21 -> 1218.390805 | G22: =G20*1000/G21 -> 887.4598071
D24: Analyse der Anlagendeckung: Musterlösung
C26: Angaben in [1000 EUR] | F26: Berichtsjahr | G26: Vorjahr
E27: Eigenkapital | F27: =Strukturbilanz_L!D24 -> 8200 | G27: =Strukturbilanz_L!F24 -> 6960
E28: Anlagevermögen | F28: =Strukturbilanz_L!D13 -> 7820 | G28: =Strukturbilanz_L!F13 -> 7020
C29: Deckungsgrad 1 [%] | F29: =F27*100/F28 -> 104.859335 | G29: =G27*100/G28 -> 99.14529915
C31: Angaben in [1000 EUR] | F31: Berichtsjahr | G31: Vorjahr
E32: Langfr. Fremdkapital | F32: =Strukturbilanz_L!D27 -> 5720 | G32: =Strukturbilanz_L!F27 -> 4980
E33: Eigenkapital | F33: =Strukturbilanz_L!D24 -> 8200 | G33: =Strukturbilanz_L!F24 -> 6960
E34: Anlagevermögen | F34: =Strukturbilanz_L!D13 -> 7820 | G34: =Strukturbilanz_L!F13 -> 7020
C35: Deckungsgrad 2 [%] | F35: =(F32+F33)*100/F34 -> 178.0051151 | G35: =(G32+G33)*100/G34 -> 170.0854701
C38: Vermögensdeckungsrechnung | E38: Berichtsjahr | F38: Vorjahr | G38: Veränderung
C39: Eigenkapital | E39: =Strukturbilanz_L!D24 -> 8200 | F39: =Strukturbilanz_L!F24 -> 6960 | G39: =E39-F39 -> 1240
C40: ./. Anlagevermögen | E40: =Strukturbilanz_L!D13 -> 7820 | F40: =Strukturbilanz_L!F13 -> 7020 | G40: =E40-F40 -> 800
C41: = Über- oder Unterdeckung
C42: durch Eigenkapital | E42: =E39-E40 -> 380 | F42: =F39-F40 -> -60 | G42: =E42-F42 -> 440
C43: + Langfristiges Fremdkapital | E43: =Strukturbilanz_L!D27 -> 5720 | F43: =Strukturbilanz_L!F27 -> 4980 | G43: =E43-F43 -> 740
C44: = langfr. Kapital zur Finanzierung
C45: des Umlaufvermögens | E45: =E42+E43 -> 6100 | F45: =F42+F43 -> 4920 | G45: =E45-F45 -> 1180
C46: ./. Umlaufvermögen | E46: =Strukturbilanz_L!D17 -> 8180 | F46: =Strukturbilanz_L!F17 -> 7980
C47: = notwendiges kurzfrist. Fremdkapital zur
C48: Finanzierung des Umlaufvermögens | E48: =E45-E46 -> -2080 | F48: =F45-F46 -> -3060 | G48: =E48-F48 -> 980

Sheet Kennz2
C3: =Daten!C3 -> Lernmodul M 04:
C4: =Daten!C4 -> Betriebswirtschaftliche Kennzahlen
C6: =Daten!C6 -> Thema: Bilanzanalyse
D7: Analyse der Kapitalausstattung
F9: Berichtsjahr | G9: Vorjahr
C12: Eigenkapitalquote [%]
F14: Berichtsjahr | G14: Vorjahr
C17: Grad der Verschuldung [%]
F19: Berichtsjahr | G19: Vorjahr
C22: Anteil des langfr. Fremdkapitals [%]
F24: Berichtsjahr | G24: Vorjahr
C27: Anteil des kurzfr. Fremdkapitals [%]
F29: Berichtsjahr | G29: Vorjahr
E31: Nominalkapital
C32: Grad der Selbstfinanzierung [%]

Sheet Kennz2_L (hidden)
C3: =Daten!C3 -> Lernmodul M 04:
C4: =Daten!C4 -> Betriebswirtschaftliche Kennzahlen
C6: =Daten!C6 -> Thema: Bilanzanalyse
D7: Analyse der Kapitalausstattung: Musterlösung
F9: Berichtsjahr | G9: Vorjahr
E10: Eigenkapital | F10: =Strukturbilanz_L!D24 -> 8200 | G10: =Strukturbilanz_L!F24 -> 6960
E11: Gesamtkapital | F11: =Strukturbilanz_L!D31 -> 16000 | G11: =Strukturbilanz_L!F31 -> 15000
C12: Eigenkapitalquote [%] | F12: =F10*100/F11 -> 51.25 | G12: =G10*100/G11 -> 46.4
F14: Berichtsjahr | G14: Vorjahr
E15: Fremdkapital | F15: =Strukturbilanz_L!D27+Strukturbilanz_L!D30 -> 7800 | G15: =Strukturbilanz_L!F27+Strukturbilanz_L!F30 -> 8040
E16: Eigenkapital | F16: =Strukturbilanz_L!D24 -> 8200 | G16: =Strukturbilanz_L!F24 -> 6960
C17: Grad der Verschuldung [%] | F17: =F15*100/F16 -> 95.12195122 | G17: =G15*100/G16 -> 115.5172414
F19: Berichtsjahr | G19: Vorjahr
E20: Langfr. Fremdkapital | F20: =Strukturbilanz_L!D27 -> 5720 | G20: =Strukturbilanz_L!F27 -> 4980
E21: Gesamtkapital | F21: =Strukturbilanz_L!D31 -> 16000 | G21: =Strukturbilanz_L!F31 -> 15000
C22: Anteil des langfr. Fremdkapitals [%] | F22: =F20*100/F21 -> 35.75 | G22: =G20*100/G21 -> 33.2
F24: Berichtsjahr | G24: Vorjahr
E25: Kurzfr. Fremdkapital | F25: =Strukturbilanz_L!D30 -> 2080 | G25: =Strukturbilanz_L!F30 -> 3060
E26: Gesamtkapital | F26: =Strukturbilanz_L!D31 -> 16000 | G26: =Strukturbilanz_L!F31 -> 15000
C27: Anteil des kurzfr. Fremdkapitals [%] | F27: =F25*100/F26 -> 13 | G27: =G25*100/G26 -> 20.4
F29: Berichtsjahr | G29: Vorjahr
E30: Gewinnrücklagen | F30: =Strukturbilanz_L!D23 -> 1400 | G30: =Strukturbilanz_L!F23 -> 960
E31: Nominalkapital | F31: =Strukturbilanz_L!D22 -> 6800 | G31: =Strukturbilanz_L!F22 -> 6000
C32: Grad der Selbstfinanzierung [%] | F32: =F30*100/F31 -> 20.58823529 | G32: =G30*100/G31 -> 16

Sheet Kennz3
C3: =Daten!C3 -> Lernmodul M 04:
C4: =Daten!C4 -> Betriebswirtschaftliche Kennzahlen
C6: =Daten!C6 -> Thema: Bilanzanalyse
D8: Analyse der Zahlungsbereitschaft
F10: Berichtsjahr | G10: Vorjahr
C13: Liquiditätsgrad I (Barliquidität) [%]
F15: Berichtsjahr | G15: Vorjahr
C19: Liquiditätsgrad II (einzugsbedingte Liquidität) [%]
F21: Berichtsjahr | G21: Vorjahr
C24: Liquiditätsgrad III (umsatzbedingte Liquidität) [%]
C27: Liquiditäts-Staffelrechnung | E27: Berichtsjahr | F27: Vorjahr
C28: Flüssige Mittel
C29: ./.kurzfristiges Fremdkapital
C30: = Unterdeckung (1. Stufe)
C31: + Forderungen
C32: = Über- bzw. Unterdeckung (2. Stufe)
C33: + Vorräte
C34: = Überdeckung (3.Stufe)

Sheet Kennz3_L (hidden)
C3: =Daten!C3 -> Lernmodul M 04:
C4: =Daten!C4 -> Betriebswirtschaftliche Kennzahlen
C6: =Daten!C6 -> Thema: Bilanzanalyse
D8: Analyse der Zahlungsbereitschaft: Musterlösung
F10: Berichtsjahr | G10: Vorjahr
E11: Flüssige Mittel | F11: =Strukturbilanz_L!D16 -> 1020 | G11: =Strukturbilanz_L!F16 -> 580
E12: Kurzfr. Fremdkapital | F12: =Strukturbilanz_L!D30 -> 2080 | G12: =Strukturbilanz_L!F30 -> 3060
C13: Liquiditätsgrad I (Barliquidität) [%] | F13: =F11*100/F12 -> 49.03846154 | G13: =G11*100/G12 -> 18.95424837
F15: Berichtsjahr | G15: Vorjahr
E16: Flüssige Mittel | F16: =Strukturbilanz_L!D16 -> 1020 | G16: =Strukturbilanz_L!F16 -> 580
E17: Forderungen | F17: =Strukturbilanz_L!D15 -> 2300 | G17: =Strukturbilanz_L!F15 -> 1350
E18: Kurzfr. Fremdkapital | F18: =Strukturbilanz_L!D30 -> 2080 | G18: =Strukturbilanz_L!F30 -> 3060
C19: Liquiditätsgrad II (einzugsbedingte Liquidität) [%] | F19: =(F16+F17)*100/F18 -> 159.6153846 | G19: =(G16+G17)*100/G18 -> 63.07189542
F21: Berichtsjahr | G21: Vorjahr
E22: Umlaufvermögen | F22: =Strukturbilanz_L!D17 -> 8180 | G22: =Strukturbilanz_L!F17 -> 7980
E23: Kurzfr. Fremdkapital | F23: =Strukturbilanz_L!D30 -> 2080 | G23: =Strukturbilanz_L!F30 -> 3060
C24: Liquiditätsgrad III (umsatzbedingte Liquidität) [%] | F24: =F22*100/F23 -> 393.2692308 | G24: =G22*100/G23 -> 260.7843137
C27: Liquiditäts-Staffelrechnung | E27: Berichtsjahr | F27: Vorjahr
C28: Flüssige Mittel | E28: =Strukturbilanz_L!D16 -> 1020 | F28: =Strukturbilanz_L!F16 -> 580
C29: ./.kurzfristiges Fremdkapital | E29: =Strukturbilanz_L!D30 -> 2080 | F29: =Strukturbilanz_L!F30 -> 3060
C30: = Unterdeckung (1. Stufe) | E30: =E28-E29 -> -1060 | F30: =F28-F29 -> -2480
C31: + Forderungen | E31: =Strukturbilanz_L!D15 -> 2300 | F31: =Strukturbilanz_L!F15 -> 1350
C32: = Über- bzw. Unterdeckung (2. Stufe) | E32: =E30+E31 -> 1240 | F32: =F30+F31 -> -1130
C33: + Vorräte | E33: =Strukturbilanz_L!D14 -> 4860 | F33: =Strukturbilanz_L!F14 -> 6050
C34: = Überdeckung (3.Stufe) | E34: =E32+E33 -> 6100 | F34: =F32+F33 -> 4920
